bitfinex/quotes_BTCUSD_20250421
["timestamp","ask_amount","ask_price","bid_price","bid_amount"]
[1745244947881,0.4012,87597.0,87596.0,0.13772174]
[1745244948104,0.4012,87597.0,87596.0,0.13543872]
[1745244948351,0.0032,87597.0,87596.0,0.13543872]
[1745244948575,0.0012,87597.0,87596.0,0.13543872]
[1745244948797,0.0022,87597.0,87596.0,0.13543872]
[1745244949017,0.0012,87597.0,87596.0,0.13543872]
[1745244949450,0.0012,87597.0,87596.0,0.13643872]
[1745244949668,0.0012,87597.0,87596.0,0.13543872]
[1745244950169,0.0012,87597.0,87596.0,0.13743872]
[1745244950852,0.0012,87597.0,87596.0,0.00344996]
[1745244951283,0.0012,87597.0,87596.0,0.00144996]
[1745244951733,0.0012,87597.0,87596.0,0.00244996]
[1745244952638,0.22951832,87597.0,87596.0,0.00244996]
[1745244952843,0.0012,87597.0,87596.0,0.00244996]
[1745244953270,0.4012,87597.0,87596.0,0.00244996]
[1745244954441,0.4012,87597.0,87596.0,0.00144996]
[1745244954900,0.52064791,87597.0,87596.0,0.00144996]
[1745244955133,0.52164791,87597.0,87596.0,0.00144996]
[1745244955366,0.4012,87597.0,87596.0,0.00144996]
[1745244955598,0.42245045,87597.0,87596.0,0.00144996]
[1745244955821,0.42345045,87597.0,87596.0,0.00144996]
[1745244956051,0.42245045,87597.0,87596.0,0.00144996]
[1745244956278,0.4032,87597.0,87596.0,0.00144996]
[1745244957469,0.01141956,87569.0,87563.0,0.0008448]
[1745244957705,0.22839915,87566.0,87563.0,0.0008448]
[1745244957951,0.22840436,87564.0,87563.0,0.00129502]
[1745244959328,0.62840436,87564.0,87563.0,0.00129502]
[1745244959568,0.62940436,87564.0,87563.0,0.00129502]
[1745244962860,0.401,87564.0,87563.0,0.22970199]
[1745244963086,0.401,87564.0,87563.0,0.41309075]
[1745244963307,0.001,87564.0,87563.0,0.29364284]
[1745244963527,0.001,87564.0,87563.0,0.22970199]
[1745244963976,0.01141904,87573.0,87568.0,0.01141969]
[1745244964198,0.01141852,87577.0,87572.0,0.01141917]
[1745244964436,0.4,87577.0,87575.0,0.01141878]
[1745244964656,0.4,87577.0,87575.0,0.23979216]
[1745244965338,0.01141787,87582.0,87577.0,0.23978853]
[1745244965601,0.01141956,87569.0,87562.0,0.01142047]
[1745244965809,0.01141956,87569.0,87559.0,0.01142087]
[1745244965810,0.23982049,87566.0,87559.0,0.23983741]
[1745244966020,0.01141995,87566.0,87562.0,0.01142047]
[1745244966248,0.0114193,87571.0,87556.0,0.11786126]
[1745244966249,0.02124613,87581.0,87578.0,0.01141839]
[1745244966457,0.02124613,87581.0,87579.0,0.22836319]
[1745244966876,0.0422,87597.0,87594.0,0.23974176]
[1745244967082,0.01141604,87596.0,87591.0,0.01141669]
[1745244967300,0.01141617,87595.0,87591.0,0.01141669]
[1745244967508,0.01141617,87595.0,87592.0,0.01141656]
[1745244967711,0.67051924,87597.0,87593.0,0.01141643]
[1745244967925,0.67051924,87597.0,87587.0,0.22834309]
[1745244967926,0.01141695,87589.0,87582.0,0.01141787]
[1745244968137,0.01141695,87589.0,87586.0,0.01141734]
[1745244968353,0.23975518,87590.0,87586.0,0.01141734]
[1745244968354,0.01141682,87590.0,87586.0,0.01141734]
[1745244968560,0.01141695,87589.0,87586.0,0.01141734]
[1745244968804,0.23975455,87590.0,87586.0,0.01141734]
[1745244968993,0.01141708,87588.0,87585.0,0.00045022]
[1745244969471,0.4,87587.0,87585.0,0.00045022]
[1745244970084,0.4,87587.0,87586.0,0.22834699]
[1745244970328,0.2283268,87594.0,87588.0,0.22833933]
[1745244970521,0.22833094,87593.0,87589.0,0.01141695]
[1745244970959,0.23974737,87593.0,87589.0,0.01141695]
[1745244971160,0.001,87590.0,87587.0,0.01141721]
[1745244971369,0.001,87590.0,87586.0,0.01141734]
[1745244971370,0.22833765,87590.0,87586.0,0.01141734]
[1745244971544,0.22833135,87592.0,87587.0,0.01141721]
[1745244971758,0.22833135,87592.0,87588.0,0.01141708]
[1745244972165,0.22833135,87592.0,87587.0,0.01141721]
[1745244972166,0.23974791,87592.0,87587.0,0.01141721]
[1745244972366,0.23974791,87592.0,87586.0,0.01141734]
[1745244972367,0.4,87589.0,87586.0,0.01141734]
[1745244972768,0.4,87589.0,87587.0,0.22834438]
[1745244973181,0.4,87589.0,87586.0,0.23976206]
[1745244973408,0.4,87590.0,87588.0,0.01141708]
[1745244973620,0.4,87590.0,87587.0,0.01141721]
[1745244973960,0.22833917,87589.0,87585.0,0.24021711]
[1745244974189,0.01141695,87589.0,87585.0,0.00045022]
[1745244974415,0.22834698,87587.0,87585.0,0.00045022]
[1745244974635,0.22834659,87587.0,87585.0,0.00045022]
[1745244975253,0.4,87586.0,87585.0,0.0118677]
[1745244975465,0.4,87586.0,87585.0,0.2402173]
[1745244975709,0.4,87586.0,87585.0,0.00045022]
[1745244976358,0.56834791,87586.0,87585.0,0.00045022]
[1745244976773,0.58962736,87586.0,87585.0,0.00045022]
[1745244977252,0.58966736,87586.0,87585.0,0.00045022]
[1745244977472,0.5993038,87586.0,87585.0,0.00045022]
[1745244977683,0.60998393,87586.0,87585.0,0.00045022]
[1745244977905,1.07608393,87586.0,87585.0,0.00045022]
[1745244978125,1.07608393,87586.0,87563.0,0.00029502]
[1745244978126,0.22840436,87564.0,87563.0,0.00029502]
[1745244978366,0.22840142,87566.0,87563.0,0.00074574]
[1745244978588,0.22840436,87564.0,87563.0,0.00074574]
[1745244979250,0.62840436,87564.0,87563.0,0.00074574]
[1745244980106,0.79675227,87564.0,87563.0,0.00074574]
[1745244980316,0.81804153,87564.0,87563.0,0.00074574]
[1745244980527,0.81808153,87564.0,87563.0,0.00074574]
[1745244980812,0.81812153,87564.0,87563.0,0.00074574]
[1745244981051,1.23436153,87564.0,87563.0,0.00074574]
[1745244981284,1.23440153,87564.0,87563.0,0.00074574]
[1745244981527,1.36343158,87564.0,87563.0,0.00074574]
[1745244981790,1.24402367,87564.0,87563.0,0.00074574]
[1745244982076,1.25470763,87564.0,87563.0,0.00074574]
[1745244982307,1.25478763,87564.0,87563.0,0.00074574]
[1745244982497,0.01142256,87546.0,87542.0,0.01142308]
[1745244982746,0.0114223,87548.0,87544.0,0.01142282]
[1745244983007,0.4162,87551.0,87542.0,0.01142308]
[1745244983008,0.01142243,87547.0,87542.0,0.01142308]
[1745244983238,0.22845632,87545.0,87539.0,0.01142347]
[1745244983462,0.0114223,87548.0,87542.0,0.01142308]
[1745244983686,0.23986883,87548.0,87543.0,0.01142295]
[1745244983873,0.23987321,87547.0,87542.0,0.01142308]
[1745244984022,0.01142256,87546.0,87542.0,0.01142308]
[1745244984235,0.01142256,87546.0,87541.0,0.01142321]
[1745244984447,0.22844341,87550.0,87544.0,0.23987909]
[1745244984654,4e-05,87548.0,87546.0,0.01142256]
[1745244984907,8e-05,87548.0,87546.0,0.22845132]
[1745244985087,0.00012,87548.0,87546.0,0.23073573]
[1745244985294,0.00016,87548.0,87546.0,0.23173573]
[1745244985490,0.0002,87548.0,87546.0,0.23173573]
[1745244985669,0.00024,87548.0,87546.0,0.22945132]
[1745244985890,0.00024,87548.0,87546.0,0.2317356]
[1745244987611,0.00028,87548.0,87546.0,0.2317356]
[1745244987825,0.00032,87548.0,87546.0,0.22945132]
[1745244988037,0.00032,87548.0,87546.0,0.23045132]
[1745244988256,0.00036,87548.0,87547.0,0.01454085]
[1745244989783,0.00036,87548.0,87546.0,0.23045132]
[1745244990004,0.00036,87548.0,87546.0,0.002]
[1745244990217,0.22844871,87547.0,87546.0,0.001]
[1745244990540,0.22744871,87547.0,87546.0,0.001]
[1745244990979,0.2284722,87538.0,87534.0,0.01142413]
[1745244991192,0.2284722,87538.0,87532.0,0.22848766]
[1745244991193,0.2284722,87538.0,87532.0,0.01142439]
[1745244991318,0.22846974,87539.0,87536.0,0.01142387]
[1745244991521,0.22846215,87542.0,87538.0,0.01142361]
[1745244991746,0.22846215,87542.0,87537.0,0.01187527]
[1745244991954,0.23988523,87542.0,87537.0,0.00045153]
[1745244992162,0.22846854,87540.0,87537.0,0.01187527]
[1745244992388,0.22846215,87542.0,87537.0,0.01187527]
[1745244992604,0.22846658,87541.0,87537.0,0.01187527]
[1745244992803,0.22846658,87541.0,87538.0,0.01142361]
[1745244993062,0.22846658,87541.0,87537.0,0.01187527]
[1745244993280,0.22846658,87541.0,87537.0,0.00045153]
[1745244993281,0.22847207,87539.0,87537.0,0.00045153]
[1745244993476,0.11944791,87538.0,87537.0,0.00045153]
[1745244993890,0.5943053,87538.0,87537.0,0.00045153]
[1745244994270,0.9943053,87538.0,87537.0,0.00045153]
[1745244994920,0.9963053,87538.0,87537.0,0.00045153]
[1745244995467,0.9963453,87538.0,87537.0,0.00045153]
[1745244995673,0.9963853,87538.0,87537.0,0.00045153]
[1745244996114,0.9964253,87538.0,87537.0,0.00045153]
[1745244996381,0.9964653,87538.0,87537.0,0.00045153]
[1745244996599,0.9984653,87538.0,87537.0,0.00045153]
[1745244996851,1.00508418,87538.0,87537.0,0.00045153]
[1745244997074,1.02832195,87538.0,87537.0,0.00045153]
[1745244997514,1.02632195,87538.0,87537.0,0.00045153]
[1745244997779,0.82997888,87538.0,87537.0,0.00045153]
[1745244998006,0.81736,87538.0,87537.0,0.00045153]
[1745244998233,0.6488322,87538.0,87537.0,0.00045153]
[1745244998466,0.42036,87538.0,87537.0,0.00045153]
[1745244999380,0.42036,87538.0,87537.0,0.01499238]
[1745244999606,0.00116,87538.0,87537.0,0.01499238]
[1745244999818,0.00316,87538.0,87537.0,0.01499238]
[1745245000250,0.00116,87538.0,87537.0,0.01499238]
[1745245000504,0.00116,87538.0,87537.0,0.01827689]
[1745245000712,0.00216,87538.0,87537.0,0.1377248]
[1745245000930,0.00116,87538.0,87537.0,0.1868248]
[1745245001701,0.00116,87538.0,87537.0,0.18454029]
[1745245002134,0.00116,87538.0,87537.0,0.01599238]
[1745245002352,0.00016,87538.0,87537.0,0.01599238]
[1745245002798,0.00016,87538.0,87537.0,0.01699238]
[1745245003233,0.00016,87538.0,87537.0,0.01599238]
[1745245003426,0.00016,87538.0,87537.0,0.01699238]
[1745245004097,0.00016,87538.0,87537.0,0.0192768]
[1745245004305,0.00016,87538.0,87537.0,0.13872471]
[1745245004518,0.00016,87538.0,87537.0,0.13644029]
[1745245004728,0.00016,87538.0,87537.0,0.1387246]
[1745245004943,0.00016,87538.0,87537.0,0.13644029]
[1745245005764,0.00016,87538.0,87537.0,0.01699238]
[1745245006189,0.00016,87538.0,87537.0,0.24546719]
[1745245006408,0.00016,87538.0,87537.0,0.00245153]
[1745245006838,0.00016,87538.0,87537.0,0.00145153]
[1745245007043,0.00016,87538.0,87537.0,0.00245153]
[1745245007264,0.00016,87538.0,87537.0,0.00145153]
[1745245007530,0.00016,87538.0,87537.0,0.01599238]
[1745245008941,0.00016,87538.0,87537.0,0.01827697]
[1745245009332,0.00016,87538.0,87537.0,0.01699238]
[1745245009715,0.00016,87538.0,87537.0,0.01599238]
[1745245010130,0.00016,87538.0,87537.0,0.01827686]
[1745245010572,0.00016,87538.0,87537.0,0.01599238]
[1745245012181,0.00016,87538.0,87537.0,0.00145153]
[1745245012631,0.00016,87538.0,87537.0,0.01699238]
[1745245013054,0.00016,87538.0,87537.0,0.01599238]
[1745245013267,0.00016,87538.0,87537.0,0.00145153]
[1745245013722,0.39678011,87538.0,87537.0,0.00145153]
[1745245014413,0.81809091,87538.0,87537.0,0.00145153]
[1745245014625,0.82874444,87538.0,87537.0,0.00145153]
[1745245014842,0.70929653,87538.0,87537.0,0.00145153]
[1745245015063,0.64028573,87538.0,87537.0,0.00145153]
[1745245015327,0.6296322,87538.0,87537.0,0.00145153]
[1745245015537,0.2296322,87538.0,87537.0,0.00145153]
[1745245016425,0.6316322,87538.0,87537.0,0.00145153]
[1745245017303,0.2316322,87538.0,87537.0,0.00145153]
[1745245017959,0.37243272,87538.0,87537.0,0.00145153]
[1745245018418,0.65302481,87538.0,87537.0,0.00145153]
[1745245018858,0.6317122,87538.0,87537.0,0.00145153]
[1745245019374,0.2317122,87538.0,87537.0,0.00145153]
[1745245019831,0.00324,87538.0,87537.0,0.00145153]
[1745245020743,0.2317122,87538.0,87537.0,0.00145153]
[1745245021194,0.35116011,87538.0,87537.0,0.00145153]
[1745245021905,0.39886011,87538.0,87537.0,0.00145153]
[1745245022132,0.42017943,87538.0,87537.0,0.00145153]
[1745245022350,0.82017943,87538.0,87537.0,0.00145153]
[1745245022567,0.8308389,87538.0,87537.0,0.00145153]
[1745245024113,0.84498027,87538.0,87537.0,0.00145153]
[1745245024355,0.8308389,87538.0,87537.0,0.00145153]
[1745245025035,1.1708389,87538.0,87537.0,0.00145153]
[1745245025472,1.1708389,87538.0,87524.0,0.000688]
[1745245025473,0.01142504,87527.0,87524.0,0.000688]
[1745245025715,0.11944791,87526.0,87524.0,0.00114005]
[1745245025972,0.22850614,87525.0,87524.0,0.00114005]
[1745245026208,0.36927337,87525.0,87524.0,0.00114005]
[1745245026805,0.41657337,87525.0,87524.0,0.00114005]
[1745245027336,0.81657337,87525.0,87524.0,0.00114005]
[1745245027579,0.37851397,87522.0,87521.0,0.002]
[1745245027794,0.49796188,87522.0,87521.0,0.0024525]
[1745245028015,0.5192812,87522.0,87521.0,0.0024525]
[1745245028448,0.5192812,87522.0,87521.0,1e-08]
[1745245028687,0.8592812,87522.0,87521.0,1e-08]
[1745245028900,0.86993916,87522.0,87521.0,1e-08]
[1745245029343,1.27193916,87522.0,87521.0,1e-08]
[1745245029596,0.37854008,87512.0,87511.0,0.0008432]
[1745245029826,0.27695836,87505.0,87503.0,1e-08]
[1745245030048,0.22857404,87499.0,87491.0,0.002]
[1745245030286,0.36934127,87499.0,87498.0,1e-08]
[1745245030537,0.43082669,87499.0,87498.0,1e-08]
[1745245031038,0.39532195,87499.0,87498.0,1e-08]
[1745245031682,0.80391032,87499.0,87498.0,1e-08]
[1745245031897,1.14391032,87499.0,87498.0,1e-08]
[1745245032114,1.16517503,87499.0,87498.0,1e-08]
[1745245032548,1.17579936,87499.0,87498.0,1e-08]
[1745245033234,1.17679936,87499.0,87498.0,1e-08]
[1745245033961,1.32679936,87499.0,87498.0,1e-08]
[1745245034864,0.76823465,87499.0,87498.0,1e-08]
[1745245035128,0.4202127,87499.0,87498.0,1e-08]
[1745245035362,0.24878674,87499.0,87498.0,1e-08]
[1745245035589,0.23716241,87499.0,87498.0,1e-08]
[1745245036071,0.00858837,87499.0,87498.0,1e-08]
[1745245036290,0.01142648,87516.0,87509.0,0.01142739]
[1745245036507,0.16142556,87523.0,87514.0,0.01142674]
[1745245036721,0.01142648,87516.0,87506.0,0.01142778]
[1745245036940,0.01142674,87514.0,87503.0,0.01142817]
[1745245037123,0.22854008,87512.0,87506.0,0.01142778]
[1745245037330,0.2399614,87515.0,87508.0,0.01142752]
[1745245037545,0.2399614,87515.0,87511.0,0.01142713]
[1745245037756,0.23995063,87518.0,87511.0,0.22854269]
[1745245037990,0.22852441,87518.0,87514.0,0.01142674]
[1745245038216,0.01142582,87521.0,87514.0,0.01142674]
[1745245038442,0.11944791,87522.0,87518.0,0.01142622]
[1745245038688,0.4,87525.0,87521.0,0.01142582]
[1745245038900,0.11944791,87524.0,87522.0,0.01138569]
[1745245039554,0.4,87529.0,87526.0,0.01142517]
[1745245039769,0.01142504,87527.0,87523.0,0.01142556]
[1745245040053,0.01142517,87526.0,87523.0,0.01142556]
[1745245040270,0.01142543,87524.0,87516.0,0.22852806]
[1745245040491,0.011427,87512.0,87508.0,0.01142752]
[1745245040678,0.011427,87512.0,87507.0,0.2285527]
[1745245040679,0.011427,87512.0,87507.0,0.01142765]
[1745245040823,0.000451,87512.0,87509.0,0.01142739]
[1745245041047,0.011878,87512.0,87507.0,0.01142765]
[1745245041425,0.000451,87512.0,87508.0,0.01142752]
[1745245041651,0.000451,87512.0,87510.0,0.2285453]
[1745245041867,0.000451,87512.0,87504.0,0.01142804]
[1745245042078,0.2404206,87512.0,87509.0,0.001]
[1745245042257,0.22854519,87511.0,87509.0,0.001]
[1745245042515,0.11944791,87510.0,87509.0,0.001]
[1745245042736,0.3479906,87511.0,87509.0,0.001]
[1745245042973,0.22856744,87502.0,87496.0,0.01142909]
[1745245043192,0.2285734,87500.0,87494.0,0.01142935]
[1745245043411,0.2285734,87500.0,87495.0,0.01142922]
[1745245043622,0.2285734,87500.0,87494.0,0.01142935]
[1745245043843,0.2285734,87500.0,87496.0,0.01142909]
[1745245044271,0.2285734,87500.0,87491.0,0.24202215]
[1745245044483,0.22856098,87504.0,87499.0,0.0114287]
[1745245044691,0.22856871,87502.0,87498.0,0.01242883]
[1745245044901,0.22855074,87508.0,87502.0,0.01142831]
[1745245045105,0.22855074,87508.0,87505.0,0.01142791]
[1745245045315,0.22866758,87510.0,87505.0,0.01142791]
[1745245045533,0.00012,87510.0,87508.0,0.22854792]
[1745245045742,0.00012,87510.0,87507.0,0.01138765]
[1745245045956,0.00012,87510.0,87506.0,0.01142778]
[1745245046170,0.00012,87510.0,87505.0,0.01142791]
[1745245046171,0.2286676,87510.0,87505.0,0.01142791]
[1745245046621,0.00012,87510.0,87508.0,0.22854818]
[1745245047491,0.00012,87510.0,87509.0,0.01454085]
[1745245048374,0.00012,87510.0,87509.0,0.01682607]
[1745245048589,0.00016,87510.0,87509.0,0.47627398]
[1745245048807,0.0002,87510.0,87509.0,0.47498876]
[1745245049029,0.0002,87510.0,87509.0,0.52268876]
[1745245049257,0.00024,87510.0,87509.0,0.52268876]
[1745245049475,0.00028,87510.0,87509.0,0.52268876]
[1745245049690,0.00028,87510.0,87509.0,0.52168876]
[1745245050368,0.00028,87510.0,87509.0,0.50836085]
[1745245050581,0.00028,87510.0,87509.0,0.62780876]
[1745245051026,0.00028,87510.0,87509.0,0.62880876]
[1745245051446,0.00028,87510.0,87509.0,0.63080876]
[1745245051869,0.00028,87510.0,87509.0,0.62880876]
[1745245052086,0.00016,87527.0,87522.0,0.24305482]
[1745245052299,0.00016,87527.0,87526.0,0.24304438]
[1745245052957,0.00016,87527.0,87526.0,0.67934438]
[1745245053181,0.00016,87527.0,87526.0,0.79879229]
[1745245053403,0.00016,87527.0,87526.0,0.90487229]
[1745245054301,1e-08,87527.0,87526.0,0.90487229]
[1745245054741,1e-08,87527.0,87526.0,0.78542438]
[1745245054954,1e-08,87527.0,87526.0,0.75226425]
[1745245055169,0.00100001,87527.0,87526.0,0.75226425]
[1745245055616,1e-08,87527.0,87526.0,0.75226425]
[1745245055821,1e-08,87527.0,87526.0,0.75326425]
[1745245056246,1e-08,87527.0,87526.0,0.75226425]
[1745245056456,1e-08,87527.0,87526.0,0.75326425]
[1745245057743,1e-08,87527.0,87526.0,0.87271216]
[1745245058235,1e-08,87527.0,87526.0,0.87171216]
[1745245058465,0.4004,87564.0,87545.0,0.65089478]
[1745245058691,0.4004,87564.0,87562.0,0.58295043]
[1745245058916,0.4004,87564.0,87563.0,0.35454085]
[1745245059178,0.002,87579.0,87578.0,0.5829087]
[1745245059389,0.002,87579.0,87578.0,0.70235661]
[1745245059822,0.002,87579.0,87578.0,0.70240173]
[1745245060470,0.002,87579.0,87578.0,0.58295382]
[1745245061135,0.002,87579.0,87578.0,0.71636917]
[1745245062072,0.004,87579.0,87578.0,0.71636917]
[1745245063826,0.004,87579.0,87578.0,0.59692126]
[1745245064227,0.00404,87579.0,87578.0,0.59692126]
[1745245064439,0.00404,87579.0,87578.0,0.70296126]
[1745245064782,0.00408,87579.0,87578.0,0.70296126]
[1745245065435,0.00408,87579.0,87578.0,0.59692126]
[1745245065713,0.00412,87579.0,87578.0,0.70296126]
[1745245068424,0.00412,87579.0,87578.0,4.512e-05]
[1745245069083,0.00212,87579.0,87578.0,4.512e-05]
[1745245069289,0.40212,87579.0,87578.0,4.512e-05]
[1745245069529,0.40312,87579.0,87578.0,4.512e-05]
[1745245069971,0.40212,87579.0,87578.0,4.512e-05]
[1745245071484,0.40312,87579.0,87578.0,4.512e-05]
[1745245072171,0.40212,87579.0,87578.0,4.512e-05]
[1745245072384,0.00212,87579.0,87578.0,4.512e-05]
[1745245074736,0.00312,87579.0,87578.0,4.512e-05]
[1745245075231,0.00212,87579.0,87578.0,4.512e-05]
[1745245075344,0.00312,87579.0,87578.0,4.512e-05]
[1745245075589,0.00312,87579.0,87578.0,0.24295382]
[1745245075821,0.00212,87579.0,87578.0,0.58295382]
[1745245076046,0.00312,87579.0,87578.0,0.70240173]
[1745245076286,0.00312,87579.0,87578.0,0.75050173]
[1745245076287,0.00212,87579.0,87578.0,0.75050173]
[1745245076723,0.00312,87579.0,87578.0,0.75050173]
[1745245077916,0.0004227,87583.0,87582.0,0.58289827]
[1745245078137,0.0004227,87583.0,87582.0,0.80838618]
[1745245079001,0.0014227,87583.0,87582.0,0.80838618]
[1745245079418,0.0004227,87583.0,87582.0,0.80838618]
[1745245082674,0.0004227,87583.0,87582.0,0.56835742]
[1745245083106,0.0004227,87583.0,87582.0,0.22835742]
[1745245084125,0.0004227,87583.0,87582.0,0.33435742]
[1745245084503,0.0004227,87583.0,87581.0,0.22836003]
[1745245085161,0.0004227,87583.0,87582.0,0.001]
[1745245085362,0.42168859,87583.0,87582.0,0.001]
[1745245085600,0.43232153,87583.0,87581.0,0.22836003]
[1745245085835,0.43232153,87583.0,87581.0,0.22936003]
[1745245086111,0.02126589,87582.0,87581.0,0.24290088]
[1745245086542,0.02126589,87582.0,87581.0,0.22836003]
[1745245087289,0.03192317,87582.0,87581.0,0.22836003]
[1745245088447,0.02126589,87582.0,87581.0,0.22836003]
[1745245089122,0.02126589,87582.0,87581.0,0.46834879]
[1745245089350,0.0004227,87583.0,87581.0,0.34890088]
[1745245089781,0.0004227,87583.0,87581.0,0.33436003]
[1745245090019,0.0004227,87583.0,87582.0,0.35454085]
[1745245090221,0.00012,87586.0,87582.0,0.35454085]
[1745245090222,0.00012,87586.0,87583.0,0.23977255]
[1745245090444,0.00012,87586.0,87585.0,0.58289045]
[1745245092566,0.00012,87586.0,87585.0,0.58389045]
[1745245092795,0.00012,87586.0,87585.0,0.58289045]
[1745245093257,0.00012,87586.0,87585.0,0.58389045]
[1745245095435,0.00012,87586.0,87585.0,0.2293496]
[1745245095642,0.00012,87586.0,87585.0,0.001]
[1745245095867,0.22846699,87586.0,87585.0,0.001]
[1745245096336,0.62846699,87586.0,87585.0,0.001]
[1745245096530,0.22836198,87581.0,87578.0,0.01246351]
[1745245096775,0.22836524,87579.0,87578.0,0.00104512]
[1745245096990,0.39431315,87579.0,87578.0,0.00104512]
[1745245097201,0.81051315,87579.0,87578.0,0.00104512]
[1745245097427,0.81900456,87579.0,87578.0,0.00104512]
[1745245097696,0.22843567,87552.0,87544.0,0.01392408]
[1745245097911,0.33443567,87552.0,87551.0,0.06858463]
[1745245098347,0.76408358,87552.0,87551.0,0.06858463]
[1745245098557,0.87008358,87552.0,87551.0,0.06858463]
[1745245098754,0.22845654,87544.0,87543.0,0.0008448]
[1745245098973,0.34790445,87544.0,87543.0,0.0008448]
[1745245099420,0.74790445,87544.0,87543.0,0.0008448]
[1745245100317,0.74990445,87544.0,87543.0,0.0008448]
[1745245100973,0.508,87544.0,87543.0,0.0008448]
[1745245101419,0.23045654,87544.0,87543.0,0.0008448]
[1745245101612,0.33645654,87544.0,87543.0,0.0008448]
[1745245102464,0.75265654,87544.0,87543.0,0.0008448]
[1745245102679,1.02210445,87544.0,87543.0,0.0008448]
[1745245102903,0.5242,87544.0,87543.0,0.0008448]
[1745245103778,0.5242,87544.0,87532.0,0.01142439]
[1745245103779,0.22847127,87539.0,87532.0,0.01142439]
[1745245104028,0.22847127,87539.0,87533.0,0.01142426]
[1745245104258,0.10604,87540.0,87533.0,0.01142426]
[1745245104481,0.10604,87542.0,87539.0,0.01142347]
[1745245104704,0.10604,87543.0,87540.0,0.01142334]
[1745245104941,0.52424,87544.0,87541.0,0.01142321]
[1745245105180,0.22849343,87530.0,87515.0,0.24201432]
[1745245105426,0.22849259,87531.0,87523.0,0.01142556]
[1745245105648,0.10604,87533.0,87531.0,0.01142452]
[1745245105777,0.10604,87533.0,87529.0,0.01142478]
[1745245105976,0.10604,87533.0,87530.0,0.01142465]
[1745245106689,0.10604,87541.0,87538.0,0.01142361]
[1745245106917,0.22548791,87541.0,87531.0,0.23991297]
[1745245107143,0.01142334,87540.0,87532.0,0.01142439]
[1745245107368,0.22847567,87537.0,87532.0,0.01142439]
[1745245107591,0.23691112,87541.0,87534.0,0.22848264]
[1745245107592,0.34791451,87541.0,87534.0,0.22848264]
[1745245107860,0.22846938,87540.0,87534.0,0.23990677]
[1745245108113,0.01142334,87540.0,87531.0,0.23991263]
[1745245108331,0.22847755,87536.0,87531.0,0.01142452]
[1745245108770,0.22847755,87536.0,87530.0,0.01142465]
[1745245108771,0.22848277,87534.0,87530.0,0.01142465]
[1745245108994,0.22848277,87534.0,87531.0,0.01142452]
[1745245109210,0.22848277,87534.0,87530.0,0.01142465]
[1745245109440,0.22849569,87529.0,87528.0,0.000845]
[1745245109651,0.5464436,87529.0,87528.0,0.000845]
[1745245110100,0.6524836,87529.0,87528.0,0.000845]
[1745245111710,0.6534836,87529.0,87528.0,0.000845]
[1745245111927,0.66194929,87529.0,87528.0,0.000845]
[1745245112155,0.66294929,87529.0,87528.0,0.000845]
[1745245112358,1.47814929,87529.0,87528.0,0.000845]
[1745245112566,1.32814929,87529.0,87528.0,0.000845]
[1745245112766,1.32914929,87529.0,87528.0,0.000845]
[1745245113393,0.92914929,87529.0,87528.0,0.000845]
[1745245113588,0.82210929,87529.0,87528.0,0.000845]
[1745245113816,0.93014929,87529.0,87528.0,0.000845]
[1745245114448,1.33014929,87529.0,87528.0,0.000845]
[1745245115295,1.32814929,87529.0,87528.0,0.000845]
[1745245115494,1.33014929,87529.0,87528.0,0.000845]
[1745245115949,1.32814929,87529.0,87528.0,0.000845]
[1745245116878,1.22410929,87529.0,87528.0,0.000845]
[1745245117107,0.8192,87529.0,87528.0,0.000845]
[1745245117341,0.4192,87529.0,87528.0,0.000845]
[1745245118261,0.4192,87529.0,87528.0,0.001845]
[1745245118262,0.4172,87529.0,87528.0,0.001845]
[1745245118552,0.001,87529.0,87528.0,0.001845]
[1745245118786,0.001,87529.0,87528.0,0.000845]
[1745245119001,0.002,87529.0,87528.0,0.002845]
[1745245119473,0.002,87529.0,87528.0,0.0148736]
[1745245119474,0.001,87529.0,87528.0,0.0148736]
[1745245119882,0.001,87529.0,87528.0,0.001845]
[1745245122120,0.22848485,87534.0,87529.0,0.01142478]
[1745245122326,0.22848485,87534.0,87530.0,0.01142465]
[1745245122502,0.22848706,87533.0,87528.0,0.01326991]
[1745245122707,0.22848706,87533.0,87529.0,0.01142478]
[1745245122974,0.22848979,87532.0,87528.0,0.01326991]
[1745245123203,0.22848979,87532.0,87528.0,0.01226991]
[1745245123410,0.22848979,87532.0,87529.0,0.01242478]
[1745245123742,0.001,87534.0,87530.0,0.01142465]
[1745245124411,0.001,87534.0,87531.0,0.01142452]
[1745245124613,0.001,87534.0,87533.0,0.22848525]
[1745245125129,0.4162,87537.0,87536.0,0.22847742]
[1745245125371,4.509e-05,87552.0,87551.0,0.22843828]
[1745245126270,4.509e-05,87552.0,87512.0,0.4118]
[1745245126481,4.509e-05,87552.0,87540.0,0.23988805]
[1745245126697,0.22843828,87551.0,87542.0,0.01142308]
[1745245126913,0.22844089,87550.0,87544.0,0.01142282]
[1745245127121,0.22844089,87550.0,87545.0,0.01142269]
[1745245127539,0.40004509,87552.0,87549.0,0.01142217]
[1745245127755,0.40004509,87552.0,87550.0,0.22843881]
[1745245127962,0.40004509,87552.0,87549.0,0.23986361]
[1745245128197,0.00104509,87552.0,87551.0,0.22843828]
[1745245128413,4.509e-05,87552.0,87549.0,0.23986361]
[1745245128662,4.509e-05,87552.0,87551.0,0.002]
[1745245128900,0.22848076,87552.0,87551.0,0.002]
[1745245129116,0.22848076,87552.0,87548.0,0.0114223]
[1745245129357,0.22844065,87551.0,87548.0,0.0114223]
[1745245129564,4.509e-05,87552.0,87549.0,0.01142217]
[1745245130033,4.509e-05,87552.0,87551.0,0.002]
[1745245131160,0.22848076,87552.0,87551.0,0.002]
[1745245131409,0.22848076,87552.0,87549.0,0.01142217]
[1745245131635,0.22848076,87552.0,87549.0,0.01342217]
[1745245132085,0.22848076,87552.0,87549.0,0.01142217]
[1745245132321,4.509e-05,87552.0,87549.0,0.01142217]
[1745245132552,4.509e-05,87552.0,87549.0,0.24186345]
[1745245132779,4.509e-05,87552.0,87550.0,0.22843867]
[1745245133697,4.509e-05,87552.0,87550.0,0.24247197]
[1745245133973,4.509e-05,87552.0,87550.0,0.22843867]
[1745245134400,4.509e-05,87552.0,87551.0,0.47398876]
[1745245134623,1e-08,87552.0,87551.0,0.52238876]
[1745245135486,1e-08,87552.0,87551.0,0.35454085]
[1745245136122,1e-08,87552.0,87551.0,0.35754085]
[1745245136772,1e-08,87552.0,87551.0,0.46354085]
[1745245137190,1e-08,87552.0,87551.0,0.58298876]
[1745245137437,1e-08,87552.0,87551.0,0.63138876]
[1745245137877,1e-08,87552.0,87551.0,0.63038876]
[1745245138011,1e-08,87552.0,87551.0,0.48134521]